fUSD/lending_fUSD_20250123
["ID","MTS","AMOUNT","RATE_DAILY","PERIOD"]
[350107419,1737629449451,-500.0,0.00018081,2]
[350107420,1737629449460,-500.0,0.00018081,2]
[350107421,1737629449470,-584.61,0.00018081,2]
[350107422,1737629449480,-500.0,0.00018081,2]
[350107423,1737629449489,-547.46,0.00018081,2]
[350107424,1737629449499,-500.0,0.00018081,2]
[350107425,1737629449509,-563.15,0.00018081,2]
[350107426,1737629449518,-2280.27,0.00018081,2]
[350107427,1737629449528,-500.0,0.00018081,2]
[350107428,1737629449537,-727.78,0.00018081,2]
[350107429,1737629449547,-500.0,0.00018081,2]
[350107430,1737629449557,-500.0,0.00018082,2]
[350107431,1737629449566,-500.0,0.00018082,2]
[350107432,1737629449576,-500.0,0.00018082,2]
[350107433,1737629449585,-500.0,0.00018082,2]
[350107434,1737629449595,-500.0,0.00018082,2]
[350107435,1737629449606,-500.0,0.00018082,2]
[350107436,1737629449617,-500.0,0.00018082,2]
[350107437,1737629449627,-676.19,0.00018082,2]
[350107438,1737629449636,-561.96,0.00018082,2]
[350107439,1737629449645,-500.0,0.00018082,2]
[350107440,1737629449654,-500.0,0.00018082,2]
[350107441,1737629449663,-1042.61,0.00018082,2]
[350107442,1737629449673,-500.0,0.00018082,2]
[350107443,1737629449682,-500.0,0.00018082,2]
[350107444,1737629449691,-500.0,0.00018082,2]
[350107445,1737629449701,-500.0,0.00018082,2]
[350107446,1737629449710,-500.0,0.00018082,2]
[350107447,1737629449719,-300.0,0.00018082,2]
[350107448,1737629449730,-500.0,0.00018082,2]
[350107449,1737629449739,-500.0,0.00018082,2]
[350107450,1737629449748,-500.0,0.00018082,2]
[350107451,1737629449757,-500.0,0.00018082,2]
[350107452,1737629449767,-268.10759534,0.00018082,2]
[350107453,1737629449779,-231.89240466,0.00018082,2]
[350107454,1737629449787,-72.44494737,0.00018082,2]
[350107455,1737629449799,-427.55505263,0.00018082,2]
[350107456,1737629449808,-677.64,0.00018082,2]
[350107457,1737629449817,-500.0,0.00018082,2]
[350107458,1737629449826,-623.29,0.00018082,2]
[350107459,1737629449835,-500.0,0.00018082,2]
[350107460,1737629449844,-305.85024159,0.00018082,2]
[350107461,1737629449854,-500.0,0.00018082,2]
[350107462,1737629449865,-500.0,0.00018082,2]
[350107463,1737629449874,-500.0,0.00018082,2]
[350107464,1737629449884,-702.85,0.00018082,2]
[350107465,1737629449893,-200.0,0.00018082,2]
[350107466,1737629449902,-684.50495363,0.00018137,2]
[350107467,1737629449911,-463.9610687,0.00018176,2]
[350107468,1737629449920,-684.50495363,0.00018219,2]
[350107469,1737629449930,-16298.8076,0.00018256,2]
[350107470,1737629449939,-684.50495363,0.00018301,2]
[350107471,1737629449949,-160.852,0.00018304,2]
[350107472,1737629449958,-1530.414,0.00018304,2]
[350107473,1737629449967,-463.9610687,0.00018314,2]
[350107474,1737629449976,-1355.081,0.00018333,2]
[350107475,1737629449985,-2026.692,0.00018333,2]
[350107476,1737629449994,-567.0,0.00018333,2]
[350107477,1737629450003,-639.138,0.00018333,2]
[350107478,1737629450012,-150.484,0.00018333,2]
[350107479,1737629450021,-1864.0,0.00018333,2]
[350107480,1737629450030,-2959.648,0.00018333,2]
[350107481,1737629450040,-781.0,0.00018333,2]
[350107482,1737629450051,-1261.0,0.00018333,2]
[350107483,1737629450060,-907.0,0.00018333,2]
[350107484,1737629450073,-539.125,0.00018333,2]
[350107485,1737629450082,-4001.813,0.00018333,2]
[350107486,1737629450092,-150.0,0.00018333,2]
[350107487,1737629450101,-150.0,0.00018333,2]
[350107488,1737629450115,-158.021,0.00018333,2]
[350107489,1737629450124,-184.0,0.00018333,2]
[350107490,1737629450133,-155.878,0.00018333,2]
[350107491,1737629450144,-3903.0,0.00018333,2]
[350107492,1737629450154,-1176.0,0.00018333,2]
[350107493,1737629450163,-1106.0,0.00018333,2]
[350107494,1737629450172,-3273.10897654,0.00018337,2]
[350107495,1737629450184,-1490.00240435,0.00018337,2]
[350107496,1737629450194,-23413.66992787,0.00018337,2]
[350107497,1737629450692,-500.0,0.00016711,2]
[350107498,1737629450702,-500.0,0.00016711,2]
[350107499,1737629450712,-344.53759994,0.00016985,2]
[350107500,1737629450724,-157.84658623,0.00016985,2]
[350107501,1737629450735,-500.0,0.00016985,2]
[350107502,1737629450745,-500.0,0.00016985,2]
[350107503,1737629450754,-500.0,0.00016985,2]
[350107504,1737629450765,-480.04,0.00017259,2]
[350107505,1737629450775,-500.0,0.00017259,2]
[350107506,1737629450785,-500.0,0.00017259,2]
[350107507,1737629450795,-500.0,0.00017533,2]
[350107508,1737629450804,-500.0,0.00017533,2]
[350107509,1737629450813,-374.28,0.00017807,2]
[350107510,1737629450823,-170.058,0.00018333,2]
[350107511,1737629450833,-252.519,0.00018333,2]
[350107512,1737629450842,-1809.94458842,0.00018337,2]
[350107513,1737629450853,-622.154993,0.00018337,2]
[350107514,1737629450866,-2997.02721119,0.00018337,2]
[350107515,1737629450881,-358.67365013,0.00018337,2]
[350107516,1737629450892,-554.5023806,0.00018337,2]
[350107517,1737629450903,-5982.09369989,0.00018337,2]
[350107518,1737629450928,-500.0,0.00016711,2]
[350107519,1737629450937,-512.33515261,0.00018337,2]
[350107520,1737629450946,-161.018,0.0001834,2]
[350107521,1737629450955,-541.17,0.00018355,2]
[350107522,1737629450964,-500.0,0.00018355,2]
[350107523,1737629450973,-760.2,0.00018355,2]
[350107524,1737629450983,-500.0,0.00018355,2]
[350107525,1737629450992,-500.0,0.00018355,2]
[350107526,1737629451003,-500.0,0.00018355,2]
[350107527,1737629451012,-500.0,0.00018355,2]
[350107528,1737629451021,-500.0,0.00018355,2]
[350107529,1737629451030,-500.0,0.00018355,2]
[350107530,1737629451039,-343.87684739,0.00018355,2]
[350107531,1737629451501,-154.207892,0.00016711,2]
[350107532,1737629451512,-500.0,0.00016711,2]
[350107533,1737629451523,-500.0,0.00016711,2]
[350107534,1737629451533,-500.0,0.00016985,2]
[350107535,1737629451543,-504.28576485,0.00016985,2]
[350107536,1737629451553,-500.0,0.00016985,2]
[350107537,1737629451563,-500.0,0.00016985,2]
[350107538,1737629451572,-500.0,0.00016985,2]
[350107539,1737629451582,-16.50634315,0.00016985,2]
[350107540,1737629451594,-483.49365685,0.00016985,2]
[350107541,1737629451605,-500.0,0.00017259,2]
[350107542,1737629451614,-500.0,0.00017259,2]
[350107543,1737629451624,-500.0,0.00017259,2]
[350107544,1737629451633,-500.0,0.00017259,2]
[350107545,1737629451642,-154.207892,0.00017533,2]
[350107546,1737629451651,-179.84229647,0.00017533,2]
[350107547,1737629451684,-320.15770353,0.00017533,2]
[350107548,1737629451694,-28.38986147,0.00017533,2]
[350107549,1737629451706,-471.61013853,0.00017533,2]
[350107550,1737629451715,-500.0,0.00017533,2]
[350107551,1737629451724,-500.0,0.00017533,2]
[350107552,1737629451733,-500.0,0.00017807,2]
[350107553,1737629451743,-500.0,0.00017807,2]
[350107554,1737629451752,-500.0,0.00017807,2]
[350107555,1737629451762,-500.0,0.00018081,2]
[350107556,1737629451771,-223.76605461,0.00018355,2]
[350107557,1737629451780,-593.21,0.00018355,2]
[350107558,1737629451789,-24.29803146,0.00018355,2]
[350107559,1737629451800,-622.65196854,0.00018355,2]
[350107560,1737629451809,-188.10803146,0.00018355,2]
[350107561,1737629451820,-311.89196854,0.00018355,2]
[350107562,1737629451830,-470.86134,0.00018355,2]
[350107563,1737629451839,-678.15,0.00018355,2]
[350107564,1737629451848,-118.32714146,0.00018355,2]
[350107565,1737629451860,-381.67285854,0.00018355,2]
[350107566,1737629451869,-391.68976014,0.00018355,2]
[350107567,1737629451880,-108.31023986,0.00018355,2]
[350107568,1737629451890,-321.2129803,0.00018355,2]
[350107569,1737629451906,-359.9470197,0.00018355,2]
[350107570,1737629451915,-500.0,0.00018355,2]
[350107571,1737629451924,-96.08751474,0.00018355,2]
[350107572,1737629451939,-571.42248526,0.00018355,2]
[350107573,1737629451950,-640.33,0.00018355,2]
[350107574,1737629451959,-500.0,0.00018355,2]
[350107575,1737629451968,-447.08985358,0.00018355,2]
[350107576,1737629451979,-148.90014642,0.00018355,2]
[350107577,1737629451989,-500.0,0.00018355,2]
[350107578,1737629451998,-500.0,0.00018355,2]
[350107579,1737629452009,-418.29985348,0.00018355,2]
[350107581,1737629658923,154.83,0.0001696,30]
[350107582,1737630402261,-173.9,0.00012329,2]
[350107583,1737630402282,-96.8430854,0.00014,4]
[350107586,1737630564073,-800.0,0.00016,6]
[350107587,1737630564135,-500.0,0.00016711,7]
[350107588,1737630564206,-300.31290349,0.00016985,7]
[350107589,1737630569557,-10399.68709651,0.000169,5]
[350107590,1737630574595,-12000.0,0.000169,5]
[350107591,1737630613025,-12000.0,0.000169,5]
[350107597,1737630632326,-232.2,0.00010137,2]
[350107598,1737630632336,-756.35749625,0.00014,4]
[350107599,1737630632346,-1275.16,0.00014583,2]
[350107600,1737630632355,-250.0,0.00015664,2]
[350107601,1737630632364,-250.0,0.00015682,2]
[350107602,1737630632374,-250.0,0.00015682,2]
[350107603,1737630632383,-1000.0,0.0001569,2]
[350107604,1737630632392,-300.0,0.00015713,2]
[350107605,1737630632402,-12694.39,0.00015714,2]
[350107606,1737630632414,-305.27,0.00015782,2]
[350107607,1737630632425,-160.77,0.00015798,2]
[350107608,1737630632434,-173.07,0.00016215,2]
[350107609,1737630632443,-3218.13686462,0.0001634,2]
[350107610,1737630632455,-1997.21734795,0.0001634,2]
[350107611,1737630632466,-537.44719657,0.0001634,2]
[350107612,1737630632536,-1110.57051854,0.0001634,2]
[350107613,1737630632548,-949.32714944,0.0001634,2]
[350107614,1737630632592,-712.02367317,0.0001634,2]
[350107615,1737630632603,-15375.27724971,0.0001634,2]
[350107616,1737630632612,-1346.47767516,0.0001651,2]
[350107617,1737630632621,-366.0,0.00016609,2]
[350107618,1737630632630,-1224.331,0.0001661,2]
[350107619,1737630632639,-171.62207131,0.0001661,2]
[350107620,1737630632648,-15236.06030812,0.0001661,2]
[350107621,1737630632657,-191.61658947,0.0001661,2]
[350107622,1737630632666,-285.9099,0.0001661,2]
[350107623,1737630632675,-5000.0,0.0001661,2]
[350107624,1737630632684,-21873.9243,0.0001661,2]
[350107625,1737630632693,-168.27944598,0.00016611,2]
[350107626,1737630632702,-15236.06030808,0.00016631,2]
[350107627,1737630632712,-11914.71869661,0.00016652,2]
[350107628,1737630632723,-3321.34161147,0.00016652,2]
[350107629,1737630632732,-15236.06030808,0.00016673,2]
[350107630,1737630632741,-15236.06030808,0.00016694,2]
[350107631,1737630632751,-1686.89,0.000167,2]
[350107632,1737630632760,-1686.89,0.000167,2]
[350107633,1737630632770,-787.08,0.00016709,2]
[350107634,1737630632779,-500.0,0.00016709,2]
[350107635,1737630632788,-582.77,0.00016709,2]
[350107636,1737630632798,-1289.56,0.00016709,2]
[350107637,1737630632808,-81.64186848,0.00016709,2]
[350107638,1737630632820,-418.35813152,0.00016709,2]
[350107639,1737630632829,-1201.4,0.00016709,2]
[350107640,1737630632838,-937.96,0.00016709,2]
[350107641,1737630632848,-500.0,0.00016709,2]
[350107642,1737630632997,-1098.29,0.00016709,2]
[350107643,1737630633007,-933.53,0.00016709,2]
[350107644,1737630633017,-500.0,0.00016709,2]
[350107645,1737630633026,-659.52,0.00016709,2]
[350107646,1737630633036,-500.0,0.00016709,2]
[350107647,1737630633047,-692.48,0.00016709,2]
[350107648,1737630633056,-1110.8,0.00016709,2]
[350107649,1737630633066,-1440.48,0.00016709,2]
[350107650,1737630633075,-759.93,0.00016709,2]
[350107651,1737630633085,-634.63,0.00016709,2]
[350107652,1737630633095,-500.0,0.00016709,2]
[350107653,1737630633104,-1929.47,0.00016709,2]
[350107654,1737630633113,-500.0,0.00016709,2]
[350107655,1737630633123,-500.0,0.00016709,2]
[350107656,1737630633132,-500.0,0.00016709,2]
[350107657,1737630633141,-500.0,0.00016709,2]
[350107658,1737630633152,-500.0,0.00016709,2]
[350107659,1737630633161,-500.0,0.00016709,2]
[350107660,1737630633171,-500.0,0.00016709,2]
[350107661,1737630633180,-500.0,0.00016709,2]
[350107662,1737630633190,-914.78,0.00016709,2]
[350107663,1737630633199,-500.0,0.00016709,2]
[350107664,1737630633209,-500.0,0.00016709,2]
[350107665,1737630633219,-1598.35,0.00016709,2]
[350107666,1737630633227,-500.0,0.00016709,2]
[350107667,1737630633237,-500.0,0.0001671,2]
[350107668,1737630633246,-500.0,0.0001671,2]
[350107669,1737630633255,-500.0,0.0001671,2]
[350107670,1737630633265,-500.0,0.0001671,2]
[350107671,1737630633274,-500.0,0.0001671,2]
[350107672,1737630633283,-500.0,0.0001671,2]
[350107673,1737630633292,-515.43274336,0.0001671,2]
[350107674,1737630633302,-500.0,0.0001671,2]
[350107675,1737630633311,-506.7881571,0.0001671,2]
[350107676,1737630633321,-500.0,0.0001671,2]
[350107677,1737630633329,-500.0,0.0001671,2]
[350107678,1737630633339,-504.49255241,0.0001671,2]
[350107679,1737630633348,-500.0,0.0001671,2]
[350107680,1737630633357,-500.0,0.0001671,2]
[350107681,1737630633367,-500.0,0.0001671,2]
[350107682,1737630633376,-494.42433955,0.0001671,2]
[350107683,1737630633389,-5.57566045,0.0001671,2]
[350107684,1737630633398,-500.0,0.0001671,2]
[350107685,1737630633408,-500.0,0.0001671,2]
[350107686,1737630633421,-500.0,0.0001671,2]
[350107687,1737630633431,-500.0,0.0001671,2]
[350107688,1737630633440,-500.0,0.0001671,2]
[350107689,1737630633450,-500.0,0.0001671,2]
[350107690,1737630633461,-500.0,0.0001671,2]
[350107691,1737630633471,-500.0,0.0001671,2]
[350107692,1737630633480,-500.0,0.0001671,2]
[350107693,1737630633492,-500.0,0.0001671,2]
[350107694,1737630633502,-500.0,0.0001671,2]
[350107695,1737630633511,-500.0,0.0001671,2]
[350107696,1737630633520,-390.32248392,0.0001671,2]
[350107697,1737630633530,-500.0,0.0001671,2]
[350107698,1737630633539,-607.83137315,0.0001671,2]
[350107699,1737630633549,-500.0,0.0001671,2]
[350107700,1737630633559,-500.0,0.0001671,2]
[350107701,1737630633568,-500.0,0.0001671,2]
[350107702,1737630633578,-500.0,0.0001671,2]
[350107703,1737630633587,-500.0,0.0001671,2]
[350107704,1737630633597,-564.46,0.0001671,2]
[350107705,1737630633607,-500.0,0.0001671,2]
[350107706,1737630633616,-500.0,0.0001671,2]
[350107707,1737630633626,-500.0,0.0001671,2]
[350107708,1737630633636,-500.0,0.0001671,2]
[350107709,1737630633645,-500.0,0.0001671,2]
[350107710,1737630633655,-500.0,0.0001671,2]
[350107711,1737630633664,-500.0,0.0001671,2]
[350107712,1737630633674,-500.0,0.0001671,2]
[350107713,1737630633683,-500.0,0.0001671,2]
[350107714,1737630633693,-505.1098744,0.0001671,2]
[350107715,1737630633704,-500.0,0.0001671,2]
[350107716,1737630633713,-500.0,0.0001671,2]
[350107717,1737630633723,-500.0,0.0001671,2]
[350107718,1737630633732,-820.26,0.0001671,2]
[350107719,1737630633742,-500.0,0.0001671,2]
[350107720,1737630633751,-500.0,0.0001671,2]
[350107721,1737630633761,-409.38399586,0.0001671,2]
[350107722,1737630633775,-116.81531409,0.0001671,2]
[350107723,1737630633785,-500.0,0.0001671,2]
[350107724,1737630633795,-500.0,0.0001671,2]
[350107725,1737630633806,-412.80798069,0.0001671,2]
[350107726,1737630633815,-500.0,0.0001671,2]
[350107727,1737630633825,-500.0,0.0001671,2]
[350107728,1737630633835,-500.0,0.0001671,2]
[350107729,1737630633844,-500.0,0.0001671,2]
[350107730,1737630633854,-605.55929505,0.0001671,2]
[350107731,1737630633863,-500.0,0.0001671,2]
[350107732,1737630633873,-500.0,0.0001671,2]
[350107733,1737630633882,-500.0,0.0001671,2]
[350107734,1737630633892,-500.0,0.0001671,2]
[350107735,1737630633901,-500.0,0.0001671,2]
[350107736,1737630633910,-500.0,0.0001671,2]
[350107737,1737630633919,-500.0,0.0001671,2]
[350107738,1737630633929,-500.0,0.0001671,2]
[350107739,1737630633938,-500.0,0.0001671,2]
[350107740,1737630633948,-500.0,0.0001671,2]
[350107741,1737630633957,-500.0,0.0001671,2]
[350107742,1737630633966,-500.0,0.0001671,2]
[350107743,1737630633976,-500.0,0.0001671,2]
[350107744,1737630633986,-500.0,0.0001671,2]
[350107745,1737630633995,-500.0,0.0001671,2]
[350107746,1737630634006,-500.0,0.0001671,2]
[350107747,1737630634015,-500.0,0.0001671,2]
[350107748,1737630634025,-500.0,0.0001671,2]
[350107749,1737630634034,-500.0,0.0001671,2]
[350107750,1737630634044,-366.98588807,0.0001671,2]
[350107751,1737630634055,-500.0,0.0001671,2]
[350107752,1737630634064,-500.0,0.0001671,2]
[350107753,1737630634074,-500.0,0.0001671,2]
[350107754,1737630634083,-500.0,0.0001671,2]
[350107755,1737630634093,-500.0,0.0001671,2]
[350107756,1737630634103,-500.0,0.0001671,2]
[350107757,1737630634112,-500.0,0.0001671,2]
[350107758,1737630634125,-500.0,0.0001671,2]
[350107759,1737630634142,-500.0,0.0001671,2]
[350107760,1737630634156,-500.0,0.0001671,2]
[350107761,1737630634168,-500.0,0.0001671,2]
[350107762,1737630634181,-508.65346327,0.0001671,2]
[350107763,1737630634196,-500.0,0.0001671,2]
[350107764,1737630634211,-500.0,0.0001671,2]
[350107765,1737630634225,-500.0,0.0001671,2]
[350107766,1737630634237,-500.0,0.0001671,2]
[350107767,1737630634251,-500.0,0.0001671,2]
[350107768,1737630634265,-500.0,0.0001671,2]
[350107769,1737630634279,-500.0,0.0001671,2]
[350107770,1737630634292,-500.0,0.0001671,2]
[350107771,1737630634309,-500.0,0.0001671,2]
[350107772,1737630634322,-500.0,0.0001671,2]
[350107773,1737630634337,-500.0,0.0001671,2]
[350107774,1737630634351,-500.0,0.0001671,2]
[350107775,1737630634365,-500.0,0.0001671,2]
[350107776,1737630634378,-500.0,0.0001671,2]
[350107777,1737630634390,-500.0,0.0001671,2]
[350107778,1737630634405,-500.0,0.0001671,2]
[350107779,1737630634421,-500.0,0.0001671,2]
[350107780,1737630634434,-500.0,0.0001671,2]
[350107781,1737630634444,-500.0,0.0001671,2]
[350107782,1737630634455,-500.0,0.0001671,2]
[350107783,1737630634471,-500.0,0.0001671,2]
[350107784,1737630634483,-500.0,0.0001671,2]
[350107785,1737630634495,-500.0,0.0001671,2]
[350107786,1737630634507,-500.0,0.0001671,2]
[350107787,1737630634520,-500.0,0.0001671,2]
[350107788,1737630634533,-500.0,0.0001671,2]
[350107789,1737630634544,-500.0,0.0001671,2]
[350107790,1737630634556,-500.0,0.0001671,2]
[350107791,1737630634568,-495.0,0.0001671,2]
[350107792,1737630634582,-504.00819002,0.0001671,2]
[350107793,1737630634594,-500.0,0.0001671,2]
[350107794,1737630634606,-500.0,0.0001671,2]
[350107795,1737630634618,-500.0,0.0001671,2]
[350107796,1737630634630,-500.0,0.0001671,2]
[350107797,1737630634642,-524.32839653,0.0001671,2]
[350107798,1737630634654,-500.0,0.0001671,2]
[350107799,1737630634666,-504.02780279,0.0001671,2]
[350107800,1737630634678,-500.0,0.0001671,2]
[350107801,1737630634689,-500.0,0.0001671,2]
[350107802,1737630634702,-500.0,0.0001671,2]
[350107803,1737630634713,-503.35486545,0.0001671,2]
[350107804,1737630634725,-500.0,0.0001671,2]
[350107805,1737630634737,-500.0,0.0001671,2]
[350107806,1737630634750,-502.3400183,0.0001671,2]
[350107807,1737630634762,-500.0,0.0001671,2]
[350107808,1737630634773,-507.9953934,0.0001671,2]
[350107809,1737630634785,-500.0,0.0001671,2]
[350107810,1737630634796,-500.0,0.0001671,2]
[350107811,1737630634808,-500.0,0.0001671,2]
[350107812,1737630634820,-500.0,0.0001671,2]
[350107813,1737630634831,-500.0,0.0001671,2]
[350107814,1737630634843,-502.42210036,0.0001671,2]
[350107815,1737630634854,-500.0,0.0001671,2]
[350107816,1737630634866,-500.0,0.0001671,2]
[350107817,1737630634877,-500.0,0.0001671,2]
[350107818,1737630634888,-500.0,0.0001671,2]
[350107819,1737630634900,-443.192085,0.0001671,2]
[350107820,1737630634912,-501.56962851,0.0001671,2]
[350107821,1737630634924,-643.00707427,0.0001671,2]
[350107822,1737630634935,-500.0,0.0001671,2]
[350107823,1737630634947,-500.0,0.0001671,2]
[350107824,1737630634959,-500.0,0.0001671,2]
[350107825,1737630634971,-503.51143323,0.0001671,2]
[350107826,1737630634983,-500.0,0.0001671,2]
[350107827,1737630634994,-500.0,0.0001671,2]
[350107828,1737630635006,-310.42998261,0.0001671,2]
[350107829,1737630635019,-500.0,0.0001671,2]
[350107830,1737630635032,-467.32354622,0.0001671,2]
[350107831,1737630635063,-32.67645378,0.0001671,2]
[350107832,1737630635076,-500.0,0.0001671,2]
[350107833,1737630635089,-504.8956295,0.0001671,2]
[350107834,1737630635101,-500.0,0.0001671,2]
[350107835,1737630635117,-500.0,0.0001671,2]
[350107836,1737630635131,-501.33465969,0.0001671,2]
[350107837,1737630635147,-501.68333639,0.0001671,2]
[350107838,1737630635160,-500.0,0.0001671,2]
[350107839,1737630635172,-500.0,0.0001671,2]
[350107840,1737630635185,-500.0,0.0001671,2]
[350107841,1737630635197,-500.0,0.0001671,2]
[350107842,1737630635210,-500.0,0.0001671,2]
[350107843,1737630635222,-504.03578572,0.0001671,2]
[350107844,1737630635234,-502.86596132,0.0001671,2]
[350107845,1737630635246,-500.0,0.0001671,2]
[350107846,1737630635259,-500.0,0.0001671,2]
[350107847,1737630635271,-500.0,0.0001671,2]
[350107848,1737630635284,-497.7416155,0.0001671,2]
[350107849,1737630635296,-500.0,0.0001671,2]
[350107850,1737630635310,-387.55209008,0.0001671,2]
[350107851,1737630635327,-112.44790992,0.0001671,2]
[350107852,1737630635339,-242.4757901,0.0001671,2]
[350107853,1737630635355,-257.5242099,0.0001671,2]
[350107854,1737630635367,-500.0,0.0001671,2]
[350107855,1737630635379,-501.77184183,0.0001671,2]
[350107856,1737630635392,-200.0,0.0001671,2]
[350107857,1737630635405,-550.026808,0.0001671,2]
[350107858,1737630635419,-500.0,0.0001671,2]
[350107859,1737630635432,-501.70870393,0.0001671,2]
[350107860,1737630635444,-500.0,0.0001671,2]
[350107861,1737630635458,-500.0,0.0001671,2]
[350107862,1737630635470,-497.52711551,0.0001671,2]
[350107863,1737630635483,-500.0,0.0001671,2]
[350107864,1737630635492,-500.0,0.0001671,2]
[350107865,1737630635502,-501.53589786,0.0001671,2]
[350107866,1737630635511,-501.45417168,0.0001671,2]
[350107867,1737630635521,-500.0,0.0001671,2]
[350107868,1737630635530,-500.0,0.0001671,2]
[350107869,1737630635540,-500.0,0.0001671,2]
[350107870,1737630635550,-500.0,0.0001671,2]
[350107871,1737630635560,-500.0,0.0001671,2]
[350107872,1737630635803,-158.602004,0.0001671,2]
[350107873,1737630635843,-500.0,0.0001671,2]
[350107874,1737630635857,-502.13130006,0.0001671,2]
[350107875,1737630635867,-500.0,0.0001671,2]
[350107876,1737630635878,-160.687534,0.0001671,2]
[350107877,1737630635887,-500.0,0.0001671,2]
[350107878,1737630635896,-625.06,0.0001671,2]
[350107879,1737630635906,-627.17616251,0.0001671,2]
[350107880,1737630635923,-25.85383749,0.0001671,2]
[350107881,1737630635932,-503.95071692,0.0001671,2]
[350107882,1737630635941,-118.31101238,0.0001671,2]
[350107891,1737630638230,-381.68898762,0.0001671,2]
[350107892,1737630638240,-204319.0,0.0001671,3]
[350107893,1737630638249,-500.0,0.0001671,2]
[350107894,1737630638258,-500.0,0.0001671,2]
[350107895,1737630638268,-500.0,0.0001671,2]
[350107896,1737630638277,-500.0,0.0001671,2]
[350107897,1737630638286,-501.46322275,0.0001671,2]
[350107898,1737630638295,-500.0,0.0001671,2]
[350107899,1737630638305,-500.0,0.0001671,2]
[350107900,1737630638314,-500.0,0.0001671,2]
[350107901,1737630638323,-500.0,0.0001671,2]
[350107902,1737630638332,-500.0,0.0001671,2]
[350107903,1737630638341,-500.0,0.0001671,2]
[350107904,1737630638351,-500.0,0.0001671,2]
[350107905,1737630638362,-156.953781,0.0001671,2]
[350107906,1737630638371,-500.0,0.0001671,2]
[350107907,1737630638381,-500.0,0.0001671,2]
[350107908,1737630638391,-500.0,0.0001671,2]
[350107909,1737630638400,-500.0,0.0001671,2]
[350107910,1737630638412,-500.0,0.0001671,2]
[350107911,1737630638423,-500.0,0.0001671,2]
[350107912,1737630638432,-500.0,0.0001671,2]
[350107913,1737630638441,-500.0,0.0001671,2]
[350107914,1737630638451,-500.0,0.0001671,2]
[350107915,1737630638460,-500.0,0.0001671,2]
[350107916,1737630638469,-500.0,0.0001671,2]
[350107917,1737630638478,-30213.0,0.0001671,3]
[350107918,1737630638489,-502.32989047,0.0001671,2]
[350107919,1737630638499,-500.0,0.0001671,2]
[350107921,1737630638508,-500.0,0.0001671,2]
[350107923,1737630638517,-500.0,0.0001671,2]
[350107925,1737630638527,-520.19359668,0.0001671,2]
[350107927,1737630638537,-500.0,0.0001671,2]
[350107928,1737630638547,-500.0,0.0001671,2]
[350107930,1737630638558,-500.0,0.0001671,2]
[350107932,1737630638568,-500.0,0.0001671,2]
[350107933,1737630638578,-707.2,0.0001671,2]
[350107935,1737630638589,-500.0,0.0001671,2]
[350107937,1737630638599,-500.0,0.0001671,2]
[350107939,1737630638608,-500.0,0.0001671,2]
[350107941,1737630638619,-500.0,0.0001671,2]
[350107942,1737630638628,-500.0,0.0001671,2]
[350107944,1737630638637,-500.0,0.0001671,2]
[350107946,1737630638647,-500.0,0.0001671,2]